Cogmind - Beta 16 @@@ ROGUE MODE // 2026.02.02 @ 08:26:09 Player: quak Result: Destroyed by Y-72 Warden with Railgun Performance ------------- Evolutions (5) 2500 Regions Visited (22) 4400 Robots Destroyed (127) 635 Value Destroyed (3645) 3645 Prototype IDs (49) 980 Alien Tech Used (0) 0 Bonus (977) 977 TOTAL SCORE: 13137 Bonus ------- Follower Combat Kills 77 Met Data Miner 300 Met Imprinter 300 Was Imprinted 300 Cogmind --------- Core Integrity 0/1000 Matter 290/300 Energy 99/100 System Corruption 0% Temperature Cool (9) Movement Core (50) Location -5/Archives Parts ------- > --- POWER (1) -------- (None) > --- PROPULSION (6) --- (None) > --- UTILITY (8) ------ Enhanced Optical Array Improved Signal Interpreter Improved Hacking Suite Makeshift System Shield > --- WEAPON (2) ------- Power Maul > --- INVENTORY (5) ---- Improved Cryofiber Web Layered Light Armor Plating Guided Missile Launcher Rocket Array Peak State ------------ > --- POWER ------------ Light Fission Core > --- PROPULSION ------- Cesium-ion Thruster Improved VTOL Module Improved Cesium-ion Thruster > --- UTILITY ---------- Advanced Heat Sink Advanced Weight Redist. System Enhanced Optical Array Improved Signal Interpreter Hardened Light Armor Plating Improved Thermal Shield Advanced EM Disruption Field Makeshift System Shield > --- WEAPON ----------- Power Maul > --- INVENTORY -------- Light Angular Momentum Engine Improved Cryofiber Web Guided Missile Launcher Rocket Array [Rating: 58] Favorites ----------- Power Ion Engine Engine Ion Engine Power Core Light Nuclear Core Propulsion Light Treads Treads Light Treads Flight Unit Improved VTOL Module Utility Huge Storage Unit Device Seismic Detector Storage Huge Storage Unit Processor Improved Signal Interpreter Hackware Makeshift System Shield Protection Light Armor Plating Weapon Light Assault Rifle Energy Gun Medium Laser Ballistic Gun Light Assault Rifle Launcher Rocket Array Special Weapon RU-N14's Throwing Claymores Impact Weapon Power Maul Slashing Weapon Longsword +1 Build | -11 -10 -10 -10 -9 -8 -8 -7 -7 -7 -7 -7 -7 -6 -6 -6 -6 -6 -5 -5 -5 -5 -5 ------- Run | Yrd Mat Min Exi Min Mat Sto Fac Was Fac Low Low Dat Pro Fac Low Low Zio Pro Fac Ext Cet Arc Slots Evolved 10 | . . . . . 4 . 2 . . . . . . 2 . . . . 2 . . . Power . | . . . . . . . . . . . . . . . . . . . . . . . Propulsion 4 | . . . . . 2 . . . . . . . . 1 . . . . 1 . . . Utility 6 | . . . . . 2 . 2 . . . . . . 1 . . . . 1 . . . Weapon . | . . . . . . . . . . . . . . . . . . . . . . . Parts Attached 111 | 7 8 . 1 2 24 31 9 1 5 1 4 . . 4 1 1 4 1 5 1 . 1 Power 12 | 1 1 . 1 . 4 1 2 . . . . . . 1 . . . . . 1 . . Engine 7 | 1 1 . 1 . . 1 2 . . . . . . . . . . . . 1 . . Core 5 | . . . . . 4 . . . . . . . . 1 . . . . . . . . Reactor . | . . . . . . . . . . . . . . . . . . . . . . . Propulsion 31 | 2 . . . . 6 18 1 . 2 . 1 . . . . . 1 . . . . . Treads 23 | 2 . . . . 6 15 . . . . . . . . . . . . . . . . Leg . | . . . . . . . . . . . . . . . . . . . . . . . Wheel . | . . . . . . . . . . . . . . . . . . . . . . . Hover . | . . . . . . . . . . . . . . . . . . . . . . . Flight 8 | . . . . . . 3 1 . 2 . 1 . . . . . 1 . . . . . Utility 47 | 2 5 . . . 9 8 5 1 2 1 2 . . 3 1 1 1 . 5 . . 1 Device 17 | 1 . . . . 3 3 . 1 1 . 2 . . 2 . . 1 . 3 . . . Storage 3 | 1 1 . . . 1 . . . . . . . . . . . . . . . . . Processor 6 | . 1 . . . . 1 3 . . . . . . . . . . . 1 . . . Hackware 3 | . . . . . . . . . 1 1 . . . . . . . . . . . 1 Protection 18 | . 3 . . . 5 4 2 . . . . . . 1 1 1 . . 1 . . . Artifact . | . . . . . . . . . . . . . . . . . . . . . . . Weapon 21 | 2 2 . . 2 5 4 1 . 1 . 1 . . . . . 2 1 . . . . Energy Gun 8 | 1 1 . . 1 4 1 . . . . . . . . . . . . . . . . Energy Cannon . | . . . . . . . . . . . . . . . . . . . . . . . Ballistic Gun 7 | 1 1 . . . 1 3 . . 1 . . . . . . . . . . . . . Ballistic Cannon . | . . . . . . . . . . . . . . . . . . . . . . . Launcher 3 | . . . . . . . . . . . 1 . . . . . 1 1 . . . . Special Weapon 1 | . . . . . . . . . . . . . . . . . 1 . . . . . Impact Weapon 1 | . . . . . . . 1 . . . . . . . . . . . . . . . Slashing Weapon 1 | . . . . 1 . . . . . . . . . . . . . . . . . . Piercing Weapon . | . . . . . . . . . . . . . . . . . . . . . . . Special Melee Weapon . | . . . . . . . . . . . . . . . . . . . . . . . Unidentified Prototypes 11 | . . . . . 1 3 1 . 1 . 1 . . . . . 3 . 1 . . . Parts Lost 42 | . 2 . . 1 14 12 . . . . . 4 . 1 . . . . . 6 2 . Power 6 | . . . . . 3 . . . . . . 1 . . . . . . . 2 . . Propulsion 13 | . . . . . 4 3 . . . . . 2 . 1 . . . . . 2 1 . Utility 18 | . 1 . . . 5 8 . . . . . 1 . . . . . . . 2 1 . Weapon 5 | . 1 . . 1 2 1 . . . . . . . . . . . . . . . . Highest Loss Streak 4 | . 1 . . 1 3 4 . . . . . 4 . 1 . . . . . 4 2 . To Critical Strikes . | . . . . . . . . . . . . . . . . . . . . . . . Average Backups 17 | 3 14 23 24 24 23 23 2 3 4 5 4 5 4 4 4 5 4 4 4 3 4 4 Power 2 | . 2 5 4 4 2 1 . . . . . . . . 1 2 1 1 1 . . . Propulsion 3 | . 1 2 2 2 3 7 1 1 1 1 1 1 . . . . . . . . . . Utility 7 | . 7 11 11 13 10 8 1 2 2 2 1 2 2 2 1 1 1 1 1 1 2 2 Weapon 4 | 1 2 5 5 5 6 5 . . . 2 2 2 2 2 2 2 2 2 2 2 2 2 Tool/Special . | . . . . . . . . . . . . . . . . . . . . . . . Unused Backups 59 | . 2 . . . 10 38 . . 3 1 1 . . 1 . . 2 . . . . 1 Power 9 | . 1 . . . 4 3 . . . . . . . . . . 1 . . . . . Propulsion 16 | . . . . . 1 14 . . 1 . . . . . . . . . . . . . Utility 21 | . . . . . 5 11 . . 1 1 1 . . 1 . . . . . . . 1 Weapon 13 | . 1 . . . . 10 . . 1 . . . . . . . 1 . . . . . Tool/Special . | . . . . . . . . . . . . . . . . . . . . . . . Average Slot Usage (%) 93 | . 100 100 100 100 96 98 68 88 95 100 95 92 69 71 73 73 79 80 74 63 28 25 Engine 7 | . 14 14 14 14 1 5 6 7 7 7 7 7 . . . . . . . 2 . . Core 2 | . . . . . 7 3 . . . . . . . 3 6 6 6 6 5 2 . . Treads 24 | . 28 28 28 28 33 35 . . . . . . . . . . . . . . . . Flight 4 | . . . . . . . 25 30 30 30 29 30 23 19 13 13 19 20 16 13 2 . Device 7 | . 4 . . . 8 10 7 11 15 11 8 7 7 10 13 13 13 13 16 12 2 . Storage 8 | . 14 14 14 14 9 8 . . . . . . . . . . . . . . . . Processor 4 | . . . . . . 4 17 23 20 15 15 15 15 13 13 13 13 13 11 11 11 11 Hackware 1 | . . . . . . . . . 1 11 15 15 15 13 6 6 6 6 5 5 5 7 Protection 11 | . 9 14 14 14 17 10 6 7 7 7 6 7 . 3 13 13 13 13 10 7 . . Energy Gun 6 | . 8 . . 8 16 8 . . . . . . . . . . . . . . . . Ballistic Gun 11 | . 19 28 28 18 1 8 . . 2 7 . . . . . . . . . . . . Impact Weapon 1 | . . . . . . . 4 7 7 7 7 7 7 6 6 6 5 6 5 5 5 5 Peak Build Rating 58 | 7 11 11 15 21 30 38 41 44 50 50 51 45 35 50 45 45 55 53 58 55 25 23 Average Rating 23 | 5 8 11 12 16 20 28 32 42 46 49 47 44 35 44 45 45 47 48 53 45 20 20 On Entrance 31 | . 7 11 11 15 16 23 11 39 44 50 50 45 35 35 46 45 45 48 48 55 25 18 Avg Prop Armor Cover (%) 8 | . . . . . . . 8 . . . . . . 9 . . . . . . . . Naked Turns . | . . . . . . . . . . . . . . . . . . . . . . . Heaviest Build 103 | 13 93 91 91 92 103 101 15 16 20 20 19 12 4 15 20 20 27 20 22 24 3 3 Greatest Support 88 | 40 40 40 40 40 83 88 20 20 22 22 24 24 16 25 20 20 25 25 25 25 14 3 Greatest Overweight (x) 4 | . 2 2 2 2 2 1 4 . . . 1 . . . . . 1 . . . . . Average Overweight (x) . | . 1 2 2 2 1 . . . . . . . . . . . . . . . . . Largest Inventory Capacity 25 | 8 25 25 25 25 25 25 5 5 5 5 5 5 5 5 5 5 5 5 5 5 5 5 Average Capacity 19 | 7 19 25 25 25 25 24 5 5 5 5 5 5 5 5 5 5 5 5 5 5 5 5 Most Carried 25 | 5 23 23 25 25 25 25 4 4 5 5 5 5 4 5 5 5 5 5 5 5 5 5 Average Carried 17 | 3 14 23 24 24 23 23 2 3 4 5 4 4 4 4 4 5 4 4 5 4 5 5 Final Capacity 25 | 8 25 25 25 25 25 5 5 5 5 5 5 5 5 5 5 5 5 5 5 5 5 5 Final Carried 25 | 5 23 23 25 24 23 2 3 4 5 5 5 4 4 5 5 5 5 5 5 5 5 5 Class Distribution -------------------- 44% | Mutant 25% | Scavenger-Mutant 13% | Sprinter 11% | Commander-Mutant 4% | Hacker-Sprinter Dominant Class ---------------- Mutant | -10/Materials Mutant | -10/Mines Mutant | -10/Exiles Mutant | -9/Mines Scavenger-Mutant | -8/Materials Commander-Mutant | -8/Storage Sprinter | -7/Factory Sprinter | -7/Waste Sprinter | -7/Factory Hacker-Sprinter | -7/Lower Caves Hacker-Sprinter | -7/Lower Caves Hacker-Sprinter | -7/Data Miner Hacker-Sprinter | -6/Proximity Caves Hacker-Sprinter | -6/Factory Sprinter | -6/Lower Caves Sprinter | -6/Lower Caves Sprinter | -6/Zion Sprinter | -5/Proximity Caves Sprinter | -5/Factory Sprinter | -5/Extension Mutant | -5/Cetus Mutant | -5/Archives Resources | -11 -10 -10 -10 -9 -8 -8 -7 -7 -7 -7 -7 -7 -6 -6 -6 -6 -6 -5 -5 -5 -5 -5 ----------- Run | Yrd Mat Min Exi Min Mat Sto Fac Was Fac Low Low Dat Pro Fac Low Low Zio Pro Fac Ext Cet Arc Matter Collected 2273 | 286 383 . 6 34 279 651 90 . 93 7 96 . 66 61 37 10 60 . 109 5 . . Remotely . | . . . . . . . . . . . . . . . . . . . . . . . Salvage Created 5291 | 177 721 . 33 24 1196 2182 90 . 116 . 197 . 264 75 . . . 72 109 . . 35 Parts 224 | 12 39 . . 3 40 98 1 . 1 . 16 . . 4 . . . 7 . . . 3 Haulers Intercepted 13 | . 2 . . . 2 6 1 . 1 . . . . . . . . . 1 . . . Recyclers Shooed 2 | . 1 . . . . 1 . . . . . . . . . . . . . . . . Parts Field Recycled . | . . . . . . . . . . . . . . . . . . . . . . . Retrieved Matter . | . . . . . . . . . . . . . . . . . . . . . . . Parts Self-Destructed 13 | . . . . . . . . . . . 8 . . . . . . 5 . . . . Prevented 4 | . . . . . . . . . . . . . . . 1 3 . . . . . . Parts Restored . | . . . . . . . . . . . . . . . . . . . . . . . Kills | -11 -10 -10 -10 -9 -8 -8 -7 -7 -7 -7 -7 -7 -6 -6 -6 -6 -6 -5 -5 -5 -5 -5 ------- Run | Yrd Mat Min Exi Min Mat Sto Fac Was Fac Low Low Dat Pro Fac Low Low Zio Pro Fac Ext Cet Arc Combat Hostiles Destroyed 86 | . 14 . . 2 24 32 . . 1 . 8 . . 1 . . . 4 . . . . Melee 10 | . . . . 2 1 5 . . . . 1 . . 1 . . . . . . . . Guns 61 | . 14 . . . 20 27 . . . . . . . . . . . . . . . . AOE 11 | . . . . . . . . . . . 7 . . . . . . 4 . . . . Classes Destroyed 15 | 2 5 . . . 3 2 . . . . 1 . . 2 . . . . . . . . Worker 7 | . . . . . 1 5 1 . . . . . . . . . . . . . . . Builder 1 | . . . . . . . . . . . . . . 1 . . . . . . . . Tunneler 4 | 4 . . . . . . . . . . . . . . . . . . . . . . Hauler 13 | . 2 . . . 2 6 1 . 1 . . . . . . . . . 1 . . . Recycler 7 | 1 1 . . . . 5 . . . . . . . . . . . . . . . . Operator 5 | . 1 . . . . 1 . . 1 . . . . 1 . . . . . . . 1 Watcher 4 | . 1 . . . 1 . 1 . . . . . . . . . . . 1 . . . Swarmer 20 | . 3 . . 2 3 4 . . . . 4 . . . . . . 4 . . . . Grunt 46 | . 11 . . . 15 17 . . 1 . 2 . . . . . . . . . . . Brawler 2 | . . . . . . 1 . . . . 1 . . . . . . . . . . . Duelist 2 | . . . . . 1 1 . . . . . . . . . . . . . . . . Sentry 13 | . . . . . 5 8 . . . . . . . . . . . . . . . . Demolisher 1 | . . . . . . 1 . . . . . . . . . . . . . . . . Programmer 1 | . . . . . . . . . . . . . . 1 . . . . . . . . Thief 1 | . . . . . . . . . . . 1 . . . . . . . . . . . Best Kill Streak 5 | 2 3 . . 2 5 5 2 . 2 . 4 . . 1 . . . 4 1 . . 1 Combat Bots Only 5 | . 2 . . 2 5 4 . . 1 . 4 . . 1 . . . 4 . . . . Max Kills in Single Turn 4 | 1 1 . . 1 1 1 1 . 1 . 4 . . 1 . . . 4 1 . . 1 Gunslinging . | . . . . . . . . . . . . . . . . . . . . . . . Exploded 4 | . . . . . . . . . . . 4 . . . . . . 4 . . . . Melee 1 | . . . . 1 1 1 . . . . 1 . . 1 . . . . . . . . Uniques/NPCs Destroyed . | . . . . . . . . . . . . . . . . . . . . . . . Combat | -11 -10 -10 -10 -9 -8 -8 -7 -7 -7 -7 -7 -7 -6 -6 -6 -6 -6 -5 -5 -5 -5 -5 -------- Run | Yrd Mat Min Exi Min Mat Sto Fac Was Fac Low Low Dat Pro Fac Low Low Zio Pro Fac Ext Cet Arc Hostile Shots Fired 675 | . 70 . . 18 156 186 3 . 7 . 29 10 2 36 6 2 . 10 24 67 26 23 Missed 220 | . 17 . . 3 33 40 2 . 4 . 14 6 . 27 3 . . 3 15 37 9 7 Hits 455 | . 53 . . 15 123 146 1 . 3 . 15 4 2 9 3 2 . 7 9 30 17 16 Melee 9 | . . . . . 4 4 . . . . 1 . . . . . . . . . . . Projectile 446 | . 53 . . 15 119 142 1 . 3 . 14 4 2 9 3 2 . 7 9 30 17 16 AOE 7 | . . . . . . 7 . . . . . . . . . . . . . . . . Critical Strikes 22 | . . . . . 8 8 . . . . 2 . . . . . . . . 2 2 . Actively Blocked 3 | . . . . . 2 1 . . . . . . . . . . . . . . . . Damage Taken 7506 | . 566 . . 123 1936 2339 15 . 37 . 263 192 40 103 65 29 . 130 143 667 431 427 Core 1764 | . 85 . . 20 180 337 . . . . 47 . 40 26 22 . . 7 36 252 314 398 Absorbed by Shields 131 | . . . . . . 117 . . 14 . . . . . . . . . . . . . Redirected to Shielding 193 | . . . . 7 135 51 . . . . . . . . . . . . . . . . Ignored by Resistances 70 | . . . . . . . . . . . . . . . . . . . 24 46 . . Regen/Repaired (Parts) 179 | . . . . . 116 63 . . . . . . . . . . . . . . . . Core Remaining (%) 68 | 100 . . . 58 . 6 . . . . . . 87 . . . . 93 . . . . Volleys Fired 319 | 16 63 . 2 3 108 123 . . . . 3 . . . . . . 1 . . . . Largest 2 | 2 2 . 2 2 2 2 . . . . 1 . . . . . . 1 . . . . Hottest 120 | 60 70 . 50 50 115 120 . . . . 45 . . . . . . 45 . . . . Shots Fired 619 | 32 126 . 4 6 203 243 . . . 1 3 . . . . . . 1 . . . . Gun 615 | 32 126 . 4 6 203 243 . . . 1 . . . . . . . . . . . . Cannon . | . . . . . . . . . . . . . . . . . . . . . . . Launcher 4 | . . . . . . . . . . . 3 . . . . . . 1 . . . . Special . | . . . . . . . . . . . . . . . . . . . . . . . Kinetic 207 | 16 78 . 4 6 8 94 . . . 1 . . . . . . . . . . . . Thermal 408 | 16 48 . . . 195 149 . . . . . . . . . . . . . . . . Explosive 4 | . . . . . . . . . . . 3 . . . . . . 1 . . . . Electromagnetic . | . . . . . . . . . . . . . . . . . . . . . . . Robot Hit Streak 21 | 4 8 . 2 3 21 21 . . . 4 3 . . . . . . 4 . . . . Robot Miss Streak 7 | 2 5 . 1 2 4 4 . . . . 7 . . . . . . 5 . . . . Penetration Max . | . . . . . . . . . . . . . . . . . . . . . . . Secondary Targets 3 | . 1 . . . 2 . . . . . . . . . . . . . . . . . Max Gunslinging Chain 1 | . 1 . . . 1 . . . . . . . . . . . . . . . . . Shots Hit Robots 469 | 18 74 . 2 6 151 188 4 . 3 1 4 1 5 5 . . . 1 5 . . 1 Core Hits 210 | 9 36 . 3 2 56 75 . . . . 21 . . 1 . . . 6 . . . 1 Critical Kills 2 | . . . 1 . . . . . . . 1 . . . . . . . . . . . Critical Parts Destroyed 9 | . 1 . . . . . 1 . 1 . . 1 2 1 . . . . 2 . . . Critical Strikes 42 | . 5 . 1 . 18 9 1 . 1 . 1 1 2 1 . . . . 2 . . . Burn 29 | . 4 . . . 18 7 . . . . . . . . . . . . . . . . Destroy 2 | . 1 . 1 . . . . . . . . . . . . . . . . . . . Smash 9 | . . . . . . . 1 . 1 . 1 1 2 1 . . . . 2 . . . Sever 2 | . . . . . . 2 . . . . . . . . . . . . . . . . Melee Attacks 67 | . . . . 4 1 20 4 . 3 1 2 1 5 6 . . 11 . 5 1 . 3 Impact 42 | . . . . . . . 4 . 3 1 2 1 5 6 . . 11 . 5 1 . 3 Slashing 25 | . . . . 4 1 20 . . . . . . . . . . . . . . . . Piercing . | . . . . . . . . . . . . . . . . . . . . . . . Sneak Attacks 9 | . . . . . . 2 2 . 1 . . 1 . 1 . . . . 1 . . 1 Combat Hostiles . | . . . . . . . . . . . . . . . . . . . . . . . Follow-up Attacks . | . . . . . . . . . . . . . . . . . . . . . . . Damage Inflicted 9793 | 161 867 . 35 169 2141 3658 331 . 240 19 608 141 474 275 . . . 188 356 . . 130 Guns 6223 | 161 867 . 35 40 2111 2990 . . . 19 . . . . . . . . . . . . Cannons . | . . . . . . . . . . . . . . . . . . . . . . . Explosions 739 | . . . . . . . . . . . 551 . . . . . . 188 . . . . Melee 2775 | . . . . 129 30 612 331 . 240 . 57 141 474 275 . . . . 356 . . 130 Ramming 56 | . . . . . . 56 . . . . . . . . . . . . . . . . Kinetic 1898 | 74 483 . 35 40 87 1160 . . . 19 . . . . . . . . . . . . Thermal 4325 | 87 384 . . . 2024 1830 . . . . . . . . . . . . . . . . Explosive 739 | . . . . . . . . . . . 551 . . . . . . 188 . . . . Electromagnetic . | . . . . . . . . . . . . . . . . . . . . . . . Impact 2004 | . . . . . . . 331 . 240 . 57 141 474 275 . . . . 356 . . 130 Slashing 771 | . . . . 129 30 612 . . . . . . . . . . . . . . . . Piercing . | . . . . . . . . . . . . . . . . . . . . . . . Highest Corruption 9 | . . . . . . . . 9 9 9 9 9 9 1 1 1 1 . . . . . Average Corruption 6 | . . . . . . . . 9 9 9 9 9 9 1 1 1 1 . . . . . Corruption Purged . | . . . . . . . . . . . . . . . . . . . . . . . Corruption Blocked . | . . . . . . . . . . . . . . . . . . . . . . . Effects 19 | . . . . . . . . 1 5 3 6 1 3 . . . . . . . . . Message Errors 7 | . . . . . . . . 1 1 . 2 1 2 . . . . . . . . . Matter Fused 3 | . . . . . . . . . . . 2 . 1 . . . . . . . . . Heat Flow Errors 2 | . . . . . . . . . . 1 1 . . . . . . . . . . . Energy Discharges 2 | . . . . . . . . . 1 1 . . . . . . . . . . . . Data Loss (minor) 3 | . . . . . . . . . 3 . . . . . . . . . . . . . Data Loss (major) 1 | . . . . . . . . . . . 1 . . . . . . . . . . . Misfires 1 | . . . . . . . . . . 1 . . . . . . . . . . . . Overload Shots . | . . . . . . . . . . . . . . . . . . . . . . . Overflow Damage 1078 | . . . . 46 . 3 133 . 183 . . 141 343 103 . . . . 126 . . . Projectiles . | . . . . . . . . . . . . . . . . . . . . . . . Explosions . | . . . . . . . . . . . . . . . . . . . . . . . Melee 1078 | . . . . 46 . 3 133 . 183 . . 141 343 103 . . . . 126 . . . Knockbacks 6 | . . . . . . 1 1 . 2 . . 1 1 . . . . . . . . . Impact 6 | . . . . . . 1 1 . 2 . . 1 1 . . . . . . . . . Kinetic . | . . . . . . . . . . . . . . . . . . . . . . . Secondary . | . . . . . . . . . . . . . . . . . . . . . . . Self-Inflicted Damage 60 | . . . . . . . . . . . 45 . . . . . . 15 . . . . Shots 3 | . . . . . . . . . . . 2 . . . . . . 1 . . . . Rammed 5 | . . . . . . 5 . . . . . . . . . . . . . . . . Targets Rammed 7 | . . . . . . 7 . . . . . . . . . . . . . . . . Kicked . | . . . . . . . . . . . . . . . . . . . . . . . Crushed 2 | . . . . . . 2 . . . . . . . . . . . . . . . . Highest Temperature 421 | 60 196 . 10 45 303 421 . . . 177 142 . . . . . . . . . 14 . Average Temperature 76 | 22 63 . 7 25 62 98 . . . 90 59 . . . . . . . . . 14 . Received Heat Transfer 2912 | . 288 . . . 963 1044 . . 18 . 135 . 18 18 . 20 . 12 36 153 135 72 Effects 7 | . . . . . 1 6 . . . . . . . . . . . . . . . . Shutdowns 1 | . . . . . . 1 . . . . . . . . . . . . . . . . Energy Bleed 4 | . . . . . 1 3 . . . . . . . . . . . . . . . . Interference 2 | . . . . . . 2 . . . . . . . . . . . . . . . . Siege Activations . | . . . . . . . . . . . . . . . . . . . . . . . Martial Activations . | . . . . . . . . . . . . . . . . . . . . . . . Shielding Activations . | . . . . . . . . . . . . . . . . . . . . . . . Robots Disrupted . | . . . . . . . . . . . . . . . . . . . . . . . Combat Hostiles . | . . . . . . . . . . . . . . . . . . . . . . . Robots Corrupted 9 | . . . . . . 1 1 . 3 . . . 2 1 . . . . 1 . . . Combat Hostiles 3 | . . . . . . . . . 1 . . . 2 . . . . . . . . . Parts Fried 18 | . . . . . . 1 6 . 4 . . . 1 4 . . . . 2 . . . Impact Corruptions 39 | . . . . . . 1 4 . 6 . . 3 15 5 . . . . 5 . . . Robots Melted 4 | . . . . . 4 . . . . . . . . . . . . . . . . . Combat Hostiles 3 | . . . . . 3 . . . . . . . . . . . . . . . . . Parts Melted 32 | . 4 . . . 21 7 . . . . . . . . . . . . . . . . Heat Transferred 12669 | 200 1443 . . . 6660 4366 . . . . . . . . . . . . . . . . Parts Sabotaged . | . . . . . . . . . . . . . . . . . . . . . . . Parts Stolen 1 | . . . . . . . . . . . 1 . . . . . . . . . . . Parts Stripped . | . . . . . . . . . . . . . . . . . . . . . . . Power Chain Reactions . | . . . . . . . . . . . . . . . . . . . . . . . Alert | -11 -10 -10 -10 -9 -8 -8 -7 -7 -7 -7 -7 -7 -6 -6 -6 -6 -6 -5 -5 -5 -5 -5 ------- Run | Yrd Mat Min Exi Min Mat Sto Fac Was Fac Low Low Dat Pro Fac Low Low Zio Pro Fac Ext Cet Arc Maximum Alert Level 1 | . . . . . . 1 1 . . . . . . . . . . . 1 . . . Low Security (%) 85 | 100 100 100 . 100 100 52 93 100 100 . . . . 100 . . . . 95 100 100 100 Level 1 14 | . . . . . . 47 6 . . . . . . . . . . . 4 . . . Level 2 . | . . . . . . . . . . . . . . . . . . . . . . . Level 3 . | . . . . . . . . . . . . . . . . . . . . . . . Level 4 . | . . . . . . . . . . . . . . . . . . . . . . . Level 5 . | . . . . . . . . . . . . . . . . . . . . . . . High Security . | . . . . . . . . . . . . . . . . . . . . . . . Max Security . | . . . . . . . . . . . . . . . . . . . . . . . Peak Influence 393 | 10 58 5 . 82 167 393 214 43 119 . . . . 35 . . . . 219 126 44 20 Initial 176 | . . 5 . . 20 63 176 43 9 . . . . 18 . . . . 56 99 44 . Average 83 | 1 17 . . 47 49 188 167 33 76 . . . . 7 . . . . 82 84 20 11 Influence Increases 3611 | 25 418 . . 93 741 1114 119 . 200 . 280 . 35 77 . . . 90 278 121 . 20 Destroy 0b10 Robot/C 1900 | . 280 . . 60 480 680 . . 20 . 140 . . 20 . . . 80 140 . . . Destroy 0b10 Robot/NC 215 | 25 25 . . . 20 85 15 . 10 . . . 5 10 . . . . 10 5 . 5 Destroy Leader 436 | . 56 . . 10 126 162 4 . 2 . 20 . . 10 . . . 10 34 2 . . Allied During Kill 72 | . . . . 7 . 65 . . . . . . . . . . . . . . . . Successful Hack 190 | . 25 . . . 35 28 40 . 48 . . . . 7 . . . . . 7 . . Select Force Hacks 30 | . . . . . 30 . . . . . . . . . . . . . . . . . Disable Machine 60 | . 15 . . . . 30 . . . . . . . . . . . . . . . 15 Destroy Structure 18 | . 2 . . 1 5 4 . . . . . . . . . . . . 4 2 . . Partial Spotted 45 | . . . . . . . . . . . . . . 15 . . . . . 30 . . Lose Combat Pursuer 645 | . 15 . . 15 45 60 60 . 120 . 120 . 30 15 . . . . 90 75 . . Influence Decreases 3601 | 25 403 15 . 41 641 877 383 112 104 71 78 240 5 102 5 . . . 164 245 80 10 Entered New Map 909 | . . 10 . . 32 89 213 82 4 41 8 240 . 12 3 . . . 34 105 36 . Time Decay 2249 | 25 383 5 . 40 497 648 170 10 100 30 70 . 5 80 2 . . . 90 60 24 10 Lost Part 323 | . 20 . . 1 112 100 . . . . . . . 10 . . . . . 60 20 . Lost Ally 120 | . . . . . . 40 . 20 . . . . . . . . . . 40 20 . . Squads Dispatched 20 | . 2 . . . 4 6 2 . 2 . . . . 1 . . . . 1 1 1 . Investigation 6 | . . . . . 3 1 . . . . . . . . . . . . . 1 1 . Extermination 3 | . . . . . . . 1 . 1 . . . . 1 . . . . . . . . Reinforcement 9 | . 2 . . . 1 3 1 . 1 . . . . . . . . . 1 . . . Assault 2 | . . . . . . 2 . . . . . . . . . . . . . . . . Garrison . | . . . . . . . . . . . . . . . . . . . . . . . Intercept . | . . . . . . . . . . . . . . . . . . . . . . . Searches Triggered . | . . . . . . . . . . . . . . . . . . . . . . . Construction Impeded . | . . . . . . . . . . . . . . . . . . . . . . . Haulers Reinforced 2 | . . . . . . . . . 1 . . . . . . . . . 1 . . . Active Scanning Responses . | . . . . . . . . . . . . . . . . . . . . . . . Cargo Convoy Interrupts . | . . . . . . . . . . . . . . . . . . . . . . . Stealth | -11 -10 -10 -10 -9 -8 -8 -7 -7 -7 -7 -7 -7 -6 -6 -6 -6 -6 -5 -5 -5 -5 -5 --------- Run | Yrd Mat Min Exi Min Mat Sto Fac Was Fac Low Low Dat Pro Fac Low Low Zio Pro Fac Ext Cet Arc Distress Signals 20 | . 3 . . . 5 5 . . . . . . . . . . . . 4 3 . . Communications Jammed . | . . . . . . . . . . . . . . . . . . . . . . . Distress Signals . | . . . . . . . . . . . . . . . . . . . . . . . Times Spotted 250 | . 28 . . 4 35 59 7 6 11 . 23 4 3 8 2 5 . 9 19 15 8 4 Peak Tracking Total 13 | . 3 . . 4 5 8 3 6 5 . 11 4 3 5 2 5 . 6 13 11 8 4 Tactical Retreats 22 | . 1 . . 1 3 2 2 . 3 . 3 . 1 1 . 1 . . 2 2 . . ECM-based Alert Blocks 5 | . . . . . . . . . . . 5 . . . . . . . . . . . Traps | -11 -10 -10 -10 -9 -8 -8 -7 -7 -7 -7 -7 -7 -6 -6 -6 -6 -6 -5 -5 -5 -5 -5 ------- Run | Yrd Mat Min Exi Min Mat Sto Fac Was Fac Low Low Dat Pro Fac Low Low Zio Pro Fac Ext Cet Arc Traps Triggered 5 | . . . . . 2 1 1 . 1 . . . . . . . . . . . . . Indirectly . | . . . . . . . . . . . . . . . . . . . . . . . Trap Hack Attempts . | . . . . . . . . . . . . . . . . . . . . . . . Triggered . | . . . . . . . . . . . . . . . . . . . . . . . Disarmed . | . . . . . . . . . . . . . . . . . . . . . . . Reprogrammed . | . . . . . . . . . . . . . . . . . . . . . . . Reused . | . . . . . . . . . . . . . . . . . . . . . . . Traps Extracted . | . . . . . . . . . . . . . . . . . . . . . . . Installed . | . . . . . . . . . . . . . . . . . . . . . . . Triggered . | . . . . . . . . . . . . . . . . . . . . . . . Machines | -11 -10 -10 -10 -9 -8 -8 -7 -7 -7 -7 -7 -7 -6 -6 -6 -6 -6 -5 -5 -5 -5 -5 ---------- Run | Yrd Mat Min Exi Min Mat Sto Fac Was Fac Low Low Dat Pro Fac Low Low Zio Pro Fac Ext Cet Arc Machines Disabled 5 | . 1 . . . . 2 . . . . . 1 . . . . . . . . . 1 Max in Single Turn 1 | . 1 . . . . 1 . . . . . 1 . . . . . . . . . 1 Machines Repaired . | . . . . . . . . . . . . . . . . . . . . . . . Machines Dismantled . | . . . . . . . . . . . . . . . . . . . . . . . Machines Sabotaged . | . . . . . . . . . . . . . . . . . . . . . . . Overloaded Fab Kills . | . . . . . . . . . . . . . . . . . . . . . . . Hacking | -11 -10 -10 -10 -9 -8 -8 -7 -7 -7 -7 -7 -7 -6 -6 -6 -6 -6 -5 -5 -5 -5 -5 --------- Run | Yrd Mat Min Exi Min Mat Sto Fac Was Fac Low Low Dat Pro Fac Low Low Zio Pro Fac Ext Cet Arc Machines Accessed 50 | . 7 . 2 . 6 7 6 . 4 2 . 4 . 5 . . 1 . 1 4 1 . Terminals 30 | . 5 . . . 4 5 4 . 2 1 . . . 3 . . . . 1 4 1 . Fabricators 1 | . . . . . . . . . . . . . . 1 . . . . . . . . Repair Stations 3 | . . . . . 1 2 . . . . . . . . . . . . . . . . Recycling Units 6 | . 2 . . . 1 . 1 . 1 . . . . 1 . . . . . . . . Scanalyzers 2 | . . . . . . . 1 . 1 . . . . . . . . . . . . . Garrison Access . | . . . . . . . . . . . . . . . . . . . . . . . Total Hacks 150 | . 16 . 24 . 20 12 11 . 8 8 . 29 . 9 . . 3 . 2 6 2 . Successful 110 | . 8 . 24 . 13 8 3 . 6 8 . 29 . 5 . . 3 . 1 2 . . Failed 40 | . 8 . . . 7 4 8 . 2 . . . . 4 . . . . 1 4 2 . Catastrophic 10 | . 2 . . . 1 1 1 . 1 . . . . 1 . . . . . 2 1 . Database Lockouts . | . . . . . . . . . . . . . . . . . . . . . . . Manual 48 | . 6 . 1 . 10 6 6 . 1 . . . . 4 . . 5 . 5 . 4 . Terminals 69 | . 12 . . . 13 9 8 . 4 7 . . . 6 . . . . 2 6 2 . Fabricators 1 | . . . . . . . . . . . . . . 1 . . . . . . . . Repair Stations 8 | . . . . . 5 3 . . . . . . . . . . . . . . . . Recycling Units 11 | . 4 . . . 2 . 2 . 1 . . . . 2 . . . . . . . . Scanalyzers 4 | . . . . . . . 1 . 3 . . . . . . . . . . . . . Garrison Access . | . . . . . . . . . . . . . . . . . . . . . . . Terminal Hacks 92 | . 5 . 24 . 6 6 3 . 3 8 . 29 . 2 . . 3 . 1 2 . . Record 43 | . . . 23 . 1 . 1 . . 7 . 11 . . . . . . . . . . Part Schematic 13 | . 1 . . . . . . . . . . 9 . . . . 3 . . . . . Robot Schematic 6 | . . . . . . . . . . . . 6 . . . . . . . . . . Robot Analysis 1 | . 1 . . . . . . . . . . . . . . . . . . . . . Prototype ID Bank 5 | . . . . . 2 . . . . . . 3 . . . . . . . . . . Open Door 5 | . . . . . . 1 . . . 1 . . . . . . . . 1 2 . . Level Access Points 1 | . . . . . . 1 . . . . . . . . . . . . . . . . Branch Access Points 3 | . 1 . . . 1 . . . . . . . . 1 . . . . . . . . Terminal Index 1 | . . . . . . . . . 1 . . . . . . . . . . . . . Locate Traps 6 | . 1 . . . 1 2 1 . . . . . . 1 . . . . . . . . Surveillance Status 1 | . . . . . . . . . 1 . . . . . . . . . . . . . Hauler Manifests 6 | . 1 . . . 1 2 1 . 1 . . . . . . . . . . . . . Proto ID Catalog 1 | . . . 1 . . . . . . . . . . . . . . . . . . . Fabricator Hacks . | . . . . . . . . . . . . . . . . . . . . . . . Repair Station Hacks 6 | . . . . . 4 2 . . . . . . . . . . . . . . . . Scan Component 3 | . . . . . 2 1 . . . . . . . . . . . . . . . . Repair 3 | . . . . . 2 1 . . . . . . . . . . . . . . . . Recycling Unit Hacks 5 | . 2 . . . 1 . . . 1 . . . . 1 . . . . . . . . Report Inventory 4 | . 1 . . . 1 . . . 1 . . . . 1 . . . . . . . . Retrieve Components 1 | . 1 . . . . . . . . . . . . . . . . . . . . . Scanalyzer 2 | . . . . . . . . . 2 . . . . . . . . . . . . . Insert Component 1 | . . . . . . . . . 1 . . . . . . . . . . . . . Analyze 1 | . . . . . . . . . 1 . . . . . . . . . . . . . Garrison Access Hacks . | . . . . . . . . . . . . . . . . . . . . . . . Unauthorized Hacks 5 | . 1 . . . 2 . . . . . . . . 2 . . . . . . . . Terminals 4 | . 1 . . . 1 . . . . . . . . 2 . . . . . . . . Botnet 4 | . 1 . . . 1 . . . . . . . . 2 . . . . . . . . Fabricators . | . . . . . . . . . . . . . . . . . . . . . . . Repair Stations . | . . . . . . . . . . . . . . . . . . . . . . . Recycling Units 1 | . . . . . 1 . . . . . . . . . . . . . . . . . Tunnel 1 | . . . . . 1 . . . . . . . . . . . . . . . . . Scanalyzers . | . . . . . . . . . . . . . . . . . . . . . . . Garrison Access . | . . . . . . . . . . . . . . . . . . . . . . . Data Cores Recovered 2 | . . . . . . . . . 1 . . . . 1 . . . . . . . . Used 2 | . . . . . . . . . 1 . . . . 1 . . . . . . . . Hacking Detections 26 | . 5 . . . 3 6 4 . 2 . . . . 3 . . . . . 2 1 . Full Trace Events 4 | . 1 . . . . 1 . . . . . . . . . . . . . 1 1 . Feedback Events . | . . . . . . . . . . . . . . . . . . . . . . . Feedback Blocked . | . . . . . . . . . . . . . . . . . . . . . . . Robot Schematics Acquired 7 | . . . . . . . . . . . . 6 . . . . 1 . . . . . Robots Built . | . . . . . . . . . . . . . . . . . . . . . . . Authchips . | . . . . . . . . . . . . . . . . . . . . . . . Time . | . . . . . . . . . . . . . . . . . . . . . . . Total Robot Build Rating . | . . . . . . . . . . . . . . . . . . . . . . . Part Schematics Acquired 29 | . 1 . . . . . . . 1 . . 9 . . . . 18 . . . . . Parts Built . | . . . . . . . . . . . . . . . . . . . . . . . Authchips . | . . . . . . . . . . . . . . . . . . . . . . . Time . | . . . . . . . . . . . . . . . . . . . . . . . Total Part Build Rating . | . . . . . . . . . . . . . . . . . . . . . . . Part Studies Acquired . | . . . . . . . . . . . . . . . . . . . . . . . Parts Repaired 3 | . . . . . 2 1 . . . . . . . . . . . . . . . . Time 78 | . . . . . 52 26 . . . . . . . . . . . . . . . . Parts Recycled . | . . . . . . . . . . . . . . . . . . . . . . . Recycled Matter . | . . . . . . . . . . . . . . . . . . . . . . . Retrieved Matter . | . . . . . . . . . . . . . . . . . . . . . . . Retrieved Components 2 | . 2 . . . . . . . . . . . . . . . . . . . . . Parts Scanalyzed 1 | . . . . . . . . . 1 . . . . . . . . . . . . . Part Schematics Acquired 1 | . . . . . . . . . 1 . . . . . . . . . . . . . Parts Damaged . | . . . . . . . . . . . . . . . . . . . . . . . Bothacking | -11 -10 -10 -10 -9 -8 -8 -7 -7 -7 -7 -7 -7 -6 -6 -6 -6 -6 -5 -5 -5 -5 -5 ------------ Run | Yrd Mat Min Exi Min Mat Sto Fac Was Fac Low Low Dat Pro Fac Low Low Zio Pro Fac Ext Cet Arc Used RIF Installer . | . . . . . . . . . . . . . . . . . . . . . . . Robots Hacked . | . . . . . . . . . . . . . . . . . . . . . . . Non-combat . | . . . . . . . . . . . . . . . . . . . . . . . Combat . | . . . . . . . . . . . . . . . . . . . . . . . Robot Hacks Applied . | . . . . . . . . . . . . . . . . . . . . . . . Relay Couplers Released . | . . . . . . . . . . . . . . . . . . . . . . . Fabnet Peak Effective % . | . . . . . . . . . . . . . . . . . . . . . . . Robots Rewired 2 | . . . 2 . . . . . . . . . . . . . . . . . . . Allies Hacked . | . . . . . . . . . . . . . . . . . . . . . . . Hacks Repelled . | . . . . . . . . . . . . . . . . . . . . . . . Allies | -11 -10 -10 -10 -9 -8 -8 -7 -7 -7 -7 -7 -7 -6 -6 -6 -6 -6 -5 -5 -5 -5 -5 -------- Run | Yrd Mat Min Exi Min Mat Sto Fac Was Fac Low Low Dat Pro Fac Low Low Zio Pro Fac Ext Cet Arc Total Allies 22 | . . . 2 . . 12 . 1 . . . . . . . . 4 . 2 1 . . Largest Group 12 | . . . 2 2 2 12 . 1 . . . . . . . . 4 . 2 1 . . Highest-Rated Group 235 | . . . 16 16 16 235 . 31 . . . . . . . . 151 . 192 20 . . Highest-Rated Ally 96 | . . . 8 8 8 31 . 31 . . . . . . . . 39 . 96 20 . . Total Orders 1 | . . . . . . 1 . . . . . . . . . . . . . . . . STAY 1 | . . . . . . 1 . . . . . . . . . . . . . . . . Ally Attacks 61 | . . . . 1 6 24 . 11 . . . . . . . . . . 18 1 . . Total Damage 1332 | . . . . 10 35 305 . 189 . . . . . . . . . . 753 40 . . Kills 11 | . . . . 1 . 2 . . . . . . . . . . . . 7 1 . . Allies Corrupted . | . . . . . . . . . . . . . . . . . . . . . . . Allies Melted . | . . . . . . . . . . . . . . . . . . . . . . . Intel | -11 -10 -10 -10 -9 -8 -8 -7 -7 -7 -7 -7 -7 -6 -6 -6 -6 -6 -5 -5 -5 -5 -5 ------- Run | Yrd Mat Min Exi Min Mat Sto Fac Was Fac Low Low Dat Pro Fac Low Low Zio Pro Fac Ext Cet Arc Active Infowar (turns) 3878 | 94 763 . . . 720 1966 . . . . 27 . . . . . . . 73 135 67 33 Optics 308 | . . . . . . . . . . . . . . . . . . . 73 135 67 33 Seismic 2080 | 94 762 . . . 720 504 . . . . . . . . . . . . . . . . T.N.C. 1463 | . 1 . . . . 1462 . . . . . . . . . . . . . . . . ECM 27 | . . . . . . . . . . . 27 . . . . . . . . . . . Robot Analysis Total 1 | . 1 . . . . . . . . . . . . . . . . . . . . . Derelict Logs Recovered 7 | . . . . . . . . . . 1 2 . 1 . . 1 2 . . . . . Drone Launches . | . . . . . . . . . . . . . . . . . . . . . . . Drone Recoveries . | . . . . . . . . . . . . . . . . . . . . . . . Exploration | -11 -10 -10 -10 -9 -8 -8 -7 -7 -7 -7 -7 -7 -6 -6 -6 -6 -6 -5 -5 -5 -5 -5 ------------- Run | Yrd Mat Min Exi Min Mat Sto Fac Was Fac Low Low Dat Pro Fac Low Low Zio Pro Fac Ext Cet Arc Turns Passed 11820 | 179 2393 404 1729 105 1908 2664 342 39 217 76 149 51 80 263 43 137 547 79 180 135 67 33 Spaces Moved 9729 | 79 848 91 533 23 593 929 804 130 636 255 392 152 196 704 126 424 1442 257 493 425 153 44 Core 161 | 7 . . . . . . 30 . . . . . . . . . . . . . 80 44 Treads 3026 | 72 848 91 533 23 593 866 . . . . . . . . . . . . . . . . Legs . | . . . . . . . . . . . . . . . . . . . . . . . Wheels . | . . . . . . . . . . . . . . . . . . . . . . . Hover . | . . . . . . . . . . . . . . . . . . . . . . . Flight 6542 | . . . . . . 63 774 130 636 255 392 152 196 704 126 424 1442 257 493 425 73 . Fastest Speed 27 | 50 160 320 320 320 240 30 27 27 27 27 27 29 29 29 32 32 29 29 29 29 35 50 Average Speed 100 | 150 250 320 320 320 241 218 37 27 27 27 29 30 29 29 32 32 29 29 29 30 42 50 Slowest Speed 320 | 160 320 320 320 320 320 240 250 27 27 27 97 31 29 35 32 32 100 29 29 35 50 50 Overloaded Moves . | . . . . . . . . . . . . . . . . . . . . . . . Propulsion Burnouts . | . . . . . . . . . . . . . . . . . . . . . . . Robots Hopped 63 | . . . . . . 4 5 . 9 1 3 . . 12 . 4 . 1 6 18 . . Potential Cave-ins . | . . . . . . . . . . . . . . . . . . . . . . . Cave-ins Triggered . | . . . . . . . . . . . . . . . . . . . . . . . Exploration Rate (%) 51 | 5 99 18 92 15 49 96 24 89 15 49 55 78 36 19 30 65 89 55 20 57 59 75 Regions Visited 22 Branch Regions 15 Pre-discovered Areas 5 | . . . 1 . 1 . . . . . . 1 1 . . 1 . . . . . . Known Exits Taken 16 | . 1 . . . 1 1 . . 1 1 1 1 1 1 1 1 1 1 1 1 1 . Unknown Exits Taken 4 | 1 . 1 1 1 . . . . . . . . . . . . . . . . . . Scrap Searched 14 | . . . . . . . . . . 2 2 . 1 . 1 3 4 1 . . . . Spaces Dug 3 | . . . . . . 2 . . . . . . . . . . . . . 1 . . Terrain Destroyed 116 | . 1 . . 1 . 2 . . . . 77 . . . . . . 34 . 1 . . Melee 3 | . . . . . . 2 . . . . . . . . . . . . . 1 . . Projectile 2 | . 1 . . 1 . . . . . . . . . . . . . . . . . . AOE 111 | . . . . . . . . . . . 77 . . . . . . 34 . . . . Terrain Rammed . | . . . . . . . . . . . . . . . . . . . . . . . Walls Destroyed . | . . . . . . . . . . . . . . . . . . . . . . . Machines Disabled . | . . . . . . . . . . . . . . . . . . . . . . . Actions | -11 -10 -10 -10 -9 -8 -8 -7 -7 -7 -7 -7 -7 -6 -6 -6 -6 -6 -5 -5 -5 -5 -5 --------- Run | Yrd Mat Min Exi Min Mat Sto Fac Was Fac Low Low Dat Pro Fac Low Low Zio Pro Fac Ext Cet Arc Total 10965 | 109 1007 206 555 46 868 1310 827 132 665 258 412 153 208 736 127 421 1544 258 512 410 153 48 Wait 535 | . 60 116 1 15 98 109 4 1 8 . 3 . 8 21 . . 81 . 9 . 1 . Move 9595 | 78 847 90 532 22 592 922 794 129 619 252 385 151 195 681 125 415 1441 254 480 395 152 44 Hop 50 | . . . . . . 2 5 . 7 1 3 . . 10 . 4 . 1 6 11 . . Pick Up 118 | 8 22 . 3 . 26 43 3 1 3 1 3 . . 4 1 . . . . . . . Fast Attach 39 | 4 1 . . . 4 3 8 1 1 1 2 . . 4 . . 4 . 5 . . 1 Attach 46 | 3 2 . . 1 16 13 3 . 1 . 1 1 . 3 . . . 1 . 1 . . Detach 11 | . 1 . . . . . 3 . 1 . . . . 3 . . 1 1 . 1 . . Swap 60 | . 7 . 1 1 10 26 1 . 4 . 4 . . . 1 1 2 . 2 . . . Drop 87 | . 4 . 1 . 13 41 2 . 3 2 6 . . 4 . 1 4 . 5 1 . . Fire 319 | 16 63 . 2 3 108 123 . . . . 3 . . . . . . 1 . . . . Melee 67 | . . . . 4 1 20 4 . 3 1 2 1 5 6 . . 11 . 5 1 . 3 Ram . | . . . . . . . . . . . . . . . . . . . . . . . Kick . | . . . . . . . . . . . . . . . . . . . . . . . Crush 7 | . . . . . . 7 . . . . . . . . . . . . . . . . Escape Stasis 15 | . . . . . . . . . 15 . . . . . . . . . . . . . Rewire 16 | . . . 15 . . 1 . . . . . . . . . . . . . . . . Trap . | . . . . . . . . . . . . . . . . . . . . . . . Miscellaneous . | . . . . . . . . . . . . . . . . . . . . . . . Route ------- -11/Scrapyard -10/Materials (discovered 4 exits: [*Mat x3] / *Min) -10/Mines (discovered 2 exits: [*Mat] / *Exi) -10/Exiles (discovered 2 exits: [*Min x2]) -9/Mines -8/Materials (discovered 4 exits: *Fac x2 / *Sto x2) -8/Storage -7/Factory -7/Waste -7/Factory -7/Lower Caves -7/Lower Caves -7/Data Miner -6/Proximity Caves -6/Factory (discovered 3 exits: Fac / *Low x2) -6/Lower Caves -6/Lower Caves (discovered 2 exits: *Fac / *Zio) -6/Zion -5/Proximity Caves -5/Factory (discovered 2 exits: Fac / *Ext) -5/Extension (discovered 3 exits: *Fac x2 / *Cet) -5/Cetus (discovered 2 exits: *Fac / *Arc) -5/Archives (discovered 1 exit: *Fac) History --------- Turn | Location | Event 7 | -11/Scrapyard | Discovered new exit (range 16) 180 | -11/Scrapyard | Entered Materials 304 | -10/Materials | Build established: Mutant 635 | -10/Materials | Discovered new exit (range 7) 750 | -10/Materials | Discovered new exit (range 5) 880 | -10/Materials | Derelicts attacked the area 1580 | -10/Materials | Identified exit to Mines 1608 | -10/Materials | Discovered new exit (range 16) 1952 | -10/Materials | Discovered new exit (range 8) 2573 | -10/Materials | Entered Mines 2901 | -10/Mines | Discovered new exit (range 15) 2965 | -10/Mines | Deemed a non-threat by the Exiles lab entrance 2965 | -10/Mines | Discovered new exit (range 5) 2977 | -10/Mines | Entered Exiles 2977 | -10/Exiles | Found Exiles lab destroyed 3019 | -10/Exiles | Discovered new exit (range 15) 3448 | -10/Exiles | Opened EX-Vault 3467 | -10/Exiles | Found Longsword +1 3653 | -10/Exiles | Learned location of Zion (-6) 4680 | -10/Exiles | Discovered new exit (range 10) 4706 | -10/Exiles | Entered Mines 4706 | -9/Mines | Accompanied by 2 allies 4782 | -9/Mines | Discovered new exit (range 9) 4811 | -9/Mines | Entered Materials 4811 | -8/Materials | Accompanied by 2 allies 4811 | -8/Materials | Evolved 4 slots: Propulsion x2, Utility x2 4844 | -8/Materials | Identified exit to Storage 5293 | -8/Materials | Build established: Scavenger-Mutant 5643 | -8/Materials | Repaired Lgt. Armor Plating 5671 | -8/Materials | Repaired Propulsion Shielding 5868 | -8/Materials | Discovered new exit (range 15) 5942 | -8/Materials | Lost 3 parts (1p1u1w) 6156 | -8/Materials | Discovered new exit (range 15) 6659 | -8/Materials | Lost 3 parts (2u1w) 6719 | -8/Materials | Entered Storage 7046 | -8/Storage | Lost 4 parts (3n1u) 7119 | -8/Storage | Lost 3 parts (3u) 7457 | -8/Storage | Repaired Lgt. Armor Plating 7501 | -8/Storage | Identified exit to Factory 7584 | -8/Storage | Core integrity fell below 50% 8035 | -8/Storage | Assisted by bots powering up and referring to "LRC-V3" 8333 | -8/Storage | Build established: Commander-Mutant 9202 | -8/Storage | Met a pair of Derelict thieves 9362 | -8/Storage | Released all parts (11) 9364 | -8/Storage | Core integrity fell below 20% 9383 | -8/Storage | Entered Factory 9383 | -7/Factory | Evolved 2 slots: Utility x2 9725 | -7/Factory | Manually triggered Chute Trap 9725 | -7/Factory | Sucked down chute 9725 | -7/Factory | Entered Waste 9726 | -7/Waste | Met a frightened Derelict 9727 | -7/Waste | Spotted C-40 Crusher 9740 | -7/Waste | EMP discharged 9743 | -7/Waste | Spotted C-40 Crusher 9744 | -7/Waste | Spotted C-40 Crusher 9744 | -7/Waste | Spotted C-40 Crusher 9744 | -7/Waste | Spotted C-40 Crusher 9750 | -7/Waste | Spotted C-40 Crusher 9758 | -7/Waste | Discovered new exit (range 13) 9764 | -7/Waste | Identified exit to Factory 9764 | -7/Waste | Entered Factory 9914 | -7/Factory | Discovered new exit (range 13) 9943 | -7/Factory | Found Prototype Launcher 9945 | -7/Factory | Found Prototype Launcher 9981 | -7/Factory | Identified exit to Lower Caves 9981 | -7/Factory | Entered Lower Caves 10004 | -7/Lower Caves | Build established: Sprinter 10041 | -7/Lower Caves | Learned 12 Factory zone layouts 10044 | -7/Lower Caves | Identified exit to Lower Caves 10044 | -7/Lower Caves | Learned Research emergency access door positions 10044 | -7/Lower Caves | Learned Factory stockpile data 10044 | -7/Lower Caves | Learned Factory security intel 10044 | -7/Lower Caves | Learned Factory garrison access intel 10044 | -7/Lower Caves | Learned Extension garrison access intel 10057 | -7/Lower Caves | Entered another Lower Caves area 10062 | -7/Lower Caves | Identified Rocket Array (x2) 10157 | -7/Lower Caves | Spotted B-75 Beast 10175 | -7/Lower Caves | Learned 4 Factory zone layouts 10181 | -7/Lower Caves | Learned Factory interactive machine intel 10204 | -7/Lower Caves | Discovered new exit (range 4) 10205 | -7/Lower Caves | Identified exit to Data Miner 10206 | -7/Lower Caves | Entered Data Miner 10206 | -7/Data Miner | Discovered new exit (range 6) 10208 | -7/Data Miner | Identified exit to Proximity Caves 10212 | -7/Data Miner | Met Data Miner 10218 | -7/Data Miner | Learned location of Section 7 (-2) 10218 | -7/Data Miner | Acquired the access code to Warlord's prototype stash 10224 | -7/Data Miner | Received God Mode back door access code from Data Miner 10245 | -7/Data Miner | Data Conduit disabled 10257 | -7/Data Miner | Entered Proximity Caves 10287 | -6/Proximity Caves | Lost 4 parts (1p2n1u) 10312 | -6/Proximity Caves | Build established: Hacker-Sprinter 10333 | -6/Proximity Caves | Discovered new exit (range 15) 10337 | -6/Proximity Caves | Identified exit to Factory 10337 | -6/Proximity Caves | Entered Factory 10337 | -6/Factory | Evolved 2 slots: Propulsion x1, Utility x1 10338 | -6/Factory | Identified exit to Lower Caves 10339 | -6/Factory | Identified exit to Factory 10342 | -6/Factory | Loaded intel: 54 interactive machine locations 10343 | -6/Factory | Loaded intel: 4 garrison access locations 10600 | -6/Factory | Entered Lower Caves 10625 | -6/Lower Caves | Spotted B-75 Beast 10641 | -6/Lower Caves | Encountered a Warlord checkpoint 10641 | -6/Lower Caves | Discovered new exit (range 6) 10643 | -6/Lower Caves | Identified exit to Lower Caves 10643 | -6/Lower Caves | Entered another Lower Caves area 10666 | -6/Lower Caves | Discovered exit to Factory (range 9) 10697 | -6/Lower Caves | Attacked by a faux Warlord 10718 | -6/Lower Caves | Learned location of Extension (-5) 10769 | -6/Lower Caves | Discovered new exit (range 7) 10772 | -6/Lower Caves | Identified exit to Zion 10780 | -6/Lower Caves | Entered Zion 10807 | -6/Zion | Found Prototype Special Weapon 10807 | -6/Zion | Identified RU-N14's Throwing Claymores 10814 | -6/Zion | System corruption cleaned by Quarantine Array 10822 | -6/Zion | Received a hallucinogenic algorithm 10822 | -6/Zion | Ran a hallucination algorithm 10822 | -6/Zion | Ran a hallucination algorithm 10905 | -6/Zion | Build established: Sprinter 10950 | -6/Zion | Learned location of 1 exit from Proximity Caves 10969 | -6/Zion | Learned 8 Factory zone layouts 10988 | -6/Zion | Found Prototype Launcher 10988 | -6/Zion | Identified Gui. Missile Launcher 11011 | -6/Zion | Ran a hallucination algorithm 11011 | -6/Zion | Ran a hallucination algorithm 11035 | -6/Zion | Given the Hacking Drone Bay 11035 | -6/Zion | Found Prototype Device 11035 | -6/Zion | Identified Hacking Drone Bay 11046 | -6/Zion | Met Imprinter 11100 | -6/Zion | Given A8's code to call for help 11267 | -6/Zion | Imprinted 11269 | -6/Zion | Declared Zion's savior 11322 | -6/Zion | Discovered new exit (range 16) 11327 | -6/Zion | Identified exit to Proximity Caves 11327 | -6/Zion | Entered Proximity Caves 11406 | -5/Proximity Caves | Entered Factory 11406 | -5/Factory | Evolved 2 slots: Propulsion x1, Utility x1 11407 | -5/Factory | Identified exit to Factory 11486 | -5/Factory | Ran a hallucination algorithm 11509 | -5/Factory | Enhanced Grunt warped into view, answering call for help 11510 | -5/Factory | Enhanced Grunt warped into view, answering call for help 11549 | -5/Factory | Spotted B-75 Beast 11585 | -5/Factory | Discovered new exit (range 6) 11585 | -5/Factory | Identified exit to Extension 11586 | -5/Factory | Entered Extension 11607 | -5/Extension | Rescued a captive Derelict 11677 | -5/Extension | Spotted B-75 Beast 11680 | -5/Extension | Spotted B-75 Beast 11686 | -5/Extension | Discovered exit to Factory (range 3) 11714 | -5/Extension | Discovered exit to Factory (range 19) 11714 | -5/Extension | Discovered new exit (range 19) 11720 | -5/Extension | Identified exit to Cetus 11721 | -5/Extension | Entered Cetus 11725 | -5/Cetus | Spotted Cetus Guard 11725 | -5/Cetus | Spotted Cetus Guard 11725 | -5/Cetus | Spotted Cetus Guard 11725 | -5/Cetus | Spotted Cetus Guard 11729 | -5/Cetus | Lost 4 parts (1p2n1u) 11733 | -5/Cetus | Discovered exit to Factory (range 22) 11753 | -5/Cetus | Core integrity fell below 50% 11771 | -5/Cetus | Ran a hallucination algorithm 11772 | -5/Cetus | Ran a hallucination algorithm 11777 | -5/Cetus | Discovered new exit (range 21) 11787 | -5/Cetus | Identified exit to Archives 11788 | -5/Cetus | Entered Archives 11799 | -5/Archives | Unable to access archive contents 11814 | -5/Archives | Unable to access archive contents 11814 | -5/Archives | Unable to access archive contents 11816 | -5/Archives | Discovered exit to Factory (range 17) 11817 | -5/Archives | Core integrity fell below 20% 11819 | -5/Archives | Unable to access archive contents 11821 | -5/Archives | Destroyed by Y-72 Warden with Railgun Last Messages --------------- 11784_ Critical hit (Burn: +37). 11787_ EXIT=IDENTIFIED: ARCHIVES LOCATION=ARCHIVES GOAL=ESCAPE 11792_ Archive Hub disabled. 11799_ Connecting with Archive Terminal... 11802_ Sneak attack on O-32 Director. 11802_ O-32 Director destroyed. 11806_ Acquired Imp. Hacking Suite. 11811_ Penetrated by Slug. 11814_ Slug penetrates Archive Hub. 11814_ Archive Hub disabled. 11814_ Connecting with Archive Terminal... 11816_ Penetrated by Slug. 11816_ Archive Hub disabled. 11816_ Penetrated by Slug. 11816_ EXIT=FOUND: FACTORY 11817_ Penetrated by Slug. 11819_ Connecting with Archive Terminal... 11820_ Penetrated by Slug. Map ----- +----------------------------------------------------+ | ??????????????????????????????????????????? | | ??????????????????????????????????????????? | | ?????????????????????#####????????????????? | | ?????????????????????# #????????????????? | | ???????????????????? # < #????????????????? | | ??????????????????? # #????????????????? | | ??????????????????? #o #????????????????? | | ?????????????????? + #????????????????? | | ??????????????"""" # #????????????????? | | ??????????????""""" # #????????????????? | | ??????????????""""" # #????????????????? | | ???????????????"""" ?# #????????????????? | | ?????????????###"#"### #????????????????? | | ?????????????#"""""""# #????????????????? | | ?????????????#"""V"""# #????????????????? | | ?????????????#""" """; #????????????????? | | ????????????##"" " # ##???????????????? | | ############# #####???????????? | | Y Y """#?"""???????? | | """"#""""???????? | | =%/ """""""???????? | | ###+########; o V"#""""???????? | | #"""" """"""" ??????? | | #"""" """# ????? | | """ " o o """#?? ???? | | """"""""#"V @#####????+###???? | | """""""""""" ?????????????? | | """"""""#"""" ???????????? | | """"""""#""""Y Y ??????????? | | ############# #######?????????? | | ????????????## #"" ""##???????????????? | | ?????????????#o #""" """#????????????????? | | ?????????????# #"""V"""#????????????????? | | ?????????????# #"""""""#????????????????? | | ?????????????# ###"#"##?????????????????? | | ?????????????# #? """???????????????????? | | ?????????????# # ??????????????????????? | | ?????????????# #????????????????????????? | | ?????????????? #????????????????????????? | | ?????????????? /????????????????????????? | | ?????????????? ??????????????????????????? | | ??????????????????????????????????????????? | | ??????????????????????????????????????????? | | ??????????????????????????????????????????? | | ??????????????????????????????????????????? | | ??????????????????????????????????????????? | | ??????????????????????????????????????????? | | | | | | | +----------------------------------------------------+ Best States ------------- Heat Dissipation 59 Coolant Potential 80 Energy Generation 18 Energy Capacity 265 Matter Stores 300 Matter Capacity 300 Sight Range 22 Terrain Scan Density 10 ECM Strength 2 Additional Mass Support 9 Armor Coverage 375 Resistance: TH 25 Propulsion Shielding 33 Evasion (%) 64 Melee Accuracy 6 Recoil Reduction 4 Offensive Hacking 12 Defensive Hacking 11 Item Schematics ----------------- Lgt. Armor Plating | -10/Materials | Hacked Imp. Flight Unit | -7/Factory | Scanalyzed Combat Drone Bay | -7/Data Miner | Free Lgt. Regenerative Plating | -7/Data Miner | Free Cld. Cesium-ion Thruster | -7/Data Miner | Free Gravity Neutralizer | -7/Data Miner | Free Shock Maul | -7/Data Miner | Free Field Propulsion Drive | -7/Data Miner | Free Imp. Corruption Screen | -7/Data Miner | Free Wave Gun | -7/Data Miner | Free Adv. Heat Sink | -7/Data Miner | Free Imp. Remote Force Field | -6/Zion | Archive Magnetic Acceleration Cannon | -6/Zion | Archive Angular Momentum Engine | -6/Zion | Archive Hvy. Shock Bomb Launcher | -6/Zion | Archive Hyp. Gauss Rifle | -6/Zion | Archive Hyp. Coil Gun | -6/Zion | Archive Flexi-carbon Leg | -6/Zion | Archive Lyr. Heavy Armor Plating | -6/Zion | Archive Hvy. Plasma Cannon | -6/Zion | Archive Imp. Antigrav System | -6/Zion | Archive Hvy. Machine Gun | -6/Zion | Archive Imp. Coolant Injector | -6/Zion | Archive Adv. Shield Generator | -6/Zion | Archive Enh. Optical Array | -6/Zion | Archive Hvy. Mass Driver | -6/Zion | Archive Riot Gun | -6/Zion | Free Ripper | -6/Zion | Free Phasing Sabre | -6/Zion | Free Robot Schematics ------------------ L-41 Fighter | -7/Data Miner | Free E-15 Imp | -7/Data Miner | Free H-55 Commando | -7/Data Miner | Free H-66 Slayer | -7/Data Miner | Free B-60 Warrior | -7/Data Miner | Free X-62 Marksman | -7/Data Miner | Free T-07 Excavator | -6/Zion | Archive Fabricated ------------ Nothing Repaired ---------- Lgt. Armor Plating | 16% | -8/Materials Propulsion Shielding | 18% | -8/Materials Lgt. Armor Plating | 30% | -8/Storage Studied --------- None Alien Tech Used ----------------- None Achievements -------------- A New Friend Hammer Time Help From High Places Live, Flee, And Rebuild Luggage Code Challenges ------------ None Game ------ Seed PhysicsMeleeJets Manual? 0 Play Time 01:47:22 Cumulative 36.1 hours Start 2026.02.02 @ 01:31:31 End 2026.02.02 @ 08:26:09 Sessions 7 Manual Loads 0 Difficulty Rogue Special Mode None Game No. 65 Rogue 65 Adventurer 0 Explorer 0 Win Type - Total 3 Types 3/0/0/0/0/0/0/0/0/0 Lore% 33 Gallery% 25 Achievement% 25 Wizard Run 0 Options --------- Layout 1 ASCII 0 Keyboard 1 Movement Vi Keybinds 0 Fullscreen 1 Font 32/SmallcapsGlow Map View 50x40 Zoom Use 0% Tactical HUD 1 Map Filters NONE Filters NONE Steam 1 RUN: f4acaa31-11fa-499d-a492-215670e41643